[Event "*** Titled Tuesday Blitz"]
[Site "Chess.com"]
[Date "2020.04.14"]
[Round "3"]
[White "MisiekZielony"]
[Black "Irishchessman16"]
[Result "0-1"]
[WhiteElo "2172"]
[BlackElo "2359"]
[TimeControl "180+1"]
[EndTime "10:29:01 PDT"]
[Termination "Irishchessman16 won on time"]

1. c4 {[%clk 0:03:00]} 1... e5 {[%clk 0:02:58.8]} 2. Nc3 {[%clk 0:02:59.7]} 2...
Bb4 {[%clk 0:02:55.5]} 3. Qc2 {[%clk 0:02:59]} 3... d6 {[%clk 0:02:52.6]} 4. e3
{[%clk 0:02:50.9]} 4... Ne7 {[%clk 0:02:51.4]} 5. a3 {[%clk 0:02:43.5]} 5...
Bxc3 {[%clk 0:02:48.3]} 6. Qxc3 {[%clk 0:02:43.4]} 6... O-O {[%clk 0:02:47.8]}
7. Nf3 {[%clk 0:02:43]} 7... Nbc6 {[%clk 0:02:47.2]} 8. d3 {[%clk 0:02:36.3]}
8... f5 {[%clk 0:02:45.6]} 9. b4 {[%clk 0:02:26.5]} 9... Ng6 {[%clk 0:02:44.8]}
10. b5 {[%clk 0:02:17.6]} 10... Nce7 {[%clk 0:02:44.5]} 11. Bb2 {[%clk
0:02:06.6]} 11... f4 {[%clk 0:02:34.3]} 12. Be2 {[%clk 0:01:58]} 12... Nf5
{[%clk 0:02:30.9]} 13. e4 {[%clk 0:00:43.4]} 13... Nfh4 {[%clk 0:02:29.9]} 14.
Nxh4 {[%clk 0:00:38.5]} 14... Nxh4 {[%clk 0:02:30.1]} 15. g3 {[%clk 0:00:34.8]}
15... Ng2+ {[%clk 0:02:02.1]} 16. Kf1 {[%clk 0:00:18.5]} 16... Bh3 {[%clk
0:01:56.9]} 17. Kg1 {[%clk 0:00:18]} 17... f3 {[%clk 0:01:52.6]} 18. Bf1 {[%clk
0:00:17.8]} 18... Qd7 {[%clk 0:01:44]} 19. Bc1 {[%clk 0:00:17.4]} 19... Nf4
{[%clk 0:01:32.6]} 20. Bxf4 {[%clk 0:00:14.4]} 20... Rxf4 {[%clk 0:01:31.7]} 21.
Qe1 {[%clk 0:00:13.4]} 21... Raf8 {[%clk 0:01:25.2]} 22. Bxh3 {[%clk 0:00:12.1]}
22... Qxh3 {[%clk 0:01:25.1]} 23. Qf1 {[%clk 0:00:12.3]} 23... Qg4 {[%clk
0:01:24.5]} 24. h3 {[%clk 0:00:12.2]} 24... Qg6 {[%clk 0:01:24.3]} 25. Kh2
{[%clk 0:00:12.2]} 25... R4f6 {[%clk 0:01:19.6]} 26. Qc1 {[%clk 0:00:10.9]}
26... h5 {[%clk 0:01:15.3]} 27. h4 {[%clk 0:00:09.2]} 27... Qg4 {[%clk
0:01:14.2]} 28. Qe3 {[%clk 0:00:08.8]} 28... b6 {[%clk 0:01:05.5]} 29. a4 {[%clk
0:00:08.4]} 29... g5 {[%clk 0:00:50.6]} 30. Qxg5+ {[%clk 0:00:06.9]} 30... Qxg5
{[%clk 0:00:50.4]} 31. hxg5 {[%clk 0:00:06.9]} 31... Rg6 {[%clk 0:00:51.3]} 32.
Kg1 {[%clk 0:00:06.9]} 32... Rxg5 {[%clk 0:00:51]} 33. a5 {[%clk 0:00:07]} 33...
Rf7 {[%clk 0:00:47.3]} 34. axb6 {[%clk 0:00:06.8]} 34... cxb6 {[%clk 0:00:47.5]}
35. Kf1 {[%clk 0:00:05.4]} 35... Rh7 {[%clk 0:00:45.8]} 36. Ke1 {[%clk
0:00:05.3]} 36... h4 {[%clk 0:00:42.9]} 37. gxh4 {[%clk 0:00:05.3]} 37... Rxh4
{[%clk 0:00:42.6]} 38. Kd2 {[%clk 0:00:04.9]} 38... Rhg4 {[%clk 0:00:38.3]} 39.
Ke3 {[%clk 0:00:04.9]} 39... Rg7 {[%clk 0:00:32.1]} 40. Rh3 {[%clk 0:00:04.9]}
40... Rg1 {[%clk 0:00:30.3]} 41. Rxg1 {[%clk 0:00:03.8]} 41... Rxg1 {[%clk
0:00:31.2]} 42. Rxf3 {[%clk 0:00:03.4]} 42... Ra1 {[%clk 0:00:30.1]} 43. Rf6
{[%clk 0:00:01.3]} 43... Re1+ {[%clk 0:00:27.3]} 44. Kd2 {[%clk 0:00:01.1]}
44... Rf1 {[%clk 0:00:27]} 45. Ke2 {[%clk 0:00:01.3]} 45... Ra1 {[%clk
0:00:27.1]} 46. Rxd6 {[%clk 0:00:01.5]} 46... Ra2+ {[%clk 0:00:27.6]} 47. Ke3
{[%clk 0:00:02.3]} 47... Kf7 {[%clk 0:00:26.6]} 48. Rd7+ {[%clk 0:00:02.4]}
48... Ke6 {[%clk 0:00:26.7]} 49. Rd8 {[%clk 0:00:02]} 49... Ke7 {[%clk
0:00:26.7]} 50. Rd5 {[%clk 0:00:01.9]} 50... Ke6 {[%clk 0:00:26.9]} 51. Rd8
{[%clk 0:00:02.2]} 51... Ra1 {[%clk 0:00:27.3]} 0-1

[Event "*** Titled Tuesday Blitz"]
[Site "Chess.com"]
[Date "2020.04.14"]
[Round "3"]
[White "Aygehovit1992"]
[Black "Micki-taryan"]
[Result "0-1"]
[WhiteElo "2716"]
[BlackElo "3115"]
[TimeControl "180+1"]
[EndTime "10:29:03 PDT"]
[Termination "Micki-taryan won on time"]

1. e4 {[%clk 0:03:00.9]} 1... e5 {[%clk 0:02:58.4]} 2. Nf3 {[%clk 0:03:00.9]}
2... Nc6 {[%clk 0:02:59]} 3. Bb5 {[%clk 0:03:00.8]} 3... Nf6 {[%clk 0:02:59.2]}
4. d3 {[%clk 0:03:01.2]} 4... Bc5 {[%clk 0:02:58.1]} 5. c3 {[%clk 0:03:00.2]}
5... O-O {[%clk 0:02:57.3]} 6. O-O {[%clk 0:02:59.8]} 6... Re8 {[%clk
0:02:57.2]} 7. Bg5 {[%clk 0:02:59.4]} 7... h6 {[%clk 0:02:56.8]} 8. Bh4 {[%clk
0:02:59.1]} 8... Be7 {[%clk 0:02:56.9]} 9. Nbd2 {[%clk 0:02:57.7]} 9... d6
{[%clk 0:02:56.9]} 10. Re1 {[%clk 0:02:53.9]} 10... a6 {[%clk 0:02:56.4]} 11.
Ba4 {[%clk 0:02:50.9]} 11... Bd7 {[%clk 0:02:46]} 12. Nf1 {[%clk 0:02:50.3]}
12... Nh5 {[%clk 0:02:43.6]} 13. Bxe7 {[%clk 0:02:49.3]} 13... Qxe7 {[%clk
0:02:44.5]} 14. Ne3 {[%clk 0:02:48.8]} 14... Nf4 {[%clk 0:02:33.9]} 15. g3
{[%clk 0:02:48.6]} 15... Ng6 {[%clk 0:02:16.8]} 16. Nd5 {[%clk 0:02:35.1]} 16...
Qd8 {[%clk 0:02:16.6]} 17. h4 {[%clk 0:02:26.8]} 17... Nce7 {[%clk 0:02:11.4]}
18. Bxd7 {[%clk 0:02:13.7]} 18... Qxd7 {[%clk 0:02:12.3]} 19. h5 {[%clk
0:02:12.3]} 19... Nf8 {[%clk 0:01:55.5]} 20. Nxe7+ {[%clk 0:02:07.3]} 20... Qxe7
{[%clk 0:01:56.4]} 21. Nh4 {[%clk 0:02:07.8]} 21... Rad8 {[%clk 0:01:52.6]} 22.
Nf5 {[%clk 0:02:04.6]} 22... Qf6 {[%clk 0:01:52.3]} 23. Qg4 {[%clk 0:01:49.1]}
23... Kh7 {[%clk 0:01:48.2]} 24. d4 {[%clk 0:01:45.5]} 24... Ne6 {[%clk
0:01:46.2]} 25. dxe5 {[%clk 0:01:38.4]} 25... dxe5 {[%clk 0:01:44.7]} 26. Rad1
{[%clk 0:01:38.3]} 26... Rxd1 {[%clk 0:01:37.8]} 27. Rxd1 {[%clk 0:01:38.2]}
27... Rd8 {[%clk 0:01:38.4]} 28. Kg2 {[%clk 0:01:32.4]} 28... Ng5 {[%clk
0:01:21.4]} 29. Qe2 {[%clk 0:01:09.7]} 29... Rxd1 {[%clk 0:01:16.3]} 30. Qxd1
{[%clk 0:01:09.2]} 30... Nxe4 {[%clk 0:01:16.5]} 31. Qd7 {[%clk 0:01:04.9]}
31... Ng5 {[%clk 0:01:03.1]} 32. g4 {[%clk 0:01:00.1]} 32... Ne6 {[%clk
0:00:59.8]} 33. Qe8 {[%clk 0:00:52.2]} 33... Qg5 {[%clk 0:00:52]} 34. Ne7 {[%clk
0:00:15.8]} 34... Qxg4+ {[%clk 0:00:51.4]} 35. Kh2 {[%clk 0:00:14.2]} 35...
Qxh5+ {[%clk 0:00:50.4]} 36. Kg1 {[%clk 0:00:14.5]} 36... Qg4+ {[%clk
0:00:36.4]} 37. Kh2 {[%clk 0:00:14.3]} 37... Qf4+ {[%clk 0:00:25.9]} 38. Kg1
{[%clk 0:00:14.2]} 38... h5 {[%clk 0:00:23.1]} 39. Qg8+ {[%clk 0:00:11.9]} 39...
Kh6 {[%clk 0:00:23.5]} 40. Qh8+ {[%clk 0:00:07.4]} 40... Kg5 {[%clk 0:00:23.5]}
41. Nd5 {[%clk 0:00:05.7]} 41... Qg4+ {[%clk 0:00:21.5]} 42. Kh2 {[%clk
0:00:06.1]} 42... Qh4+ {[%clk 0:00:19.8]} 43. Kg1 {[%clk 0:00:06.3]} 43... Qg4+
{[%clk 0:00:19.2]} 44. Kh2 {[%clk 0:00:06.7]} 44... h4 {[%clk 0:00:19.8]} 45.
Ne3 {[%clk 0:00:06.1]} 45... Qf3 {[%clk 0:00:19.2]} 46. Kg1 {[%clk 0:00:04.9]}
46... h3 {[%clk 0:00:19.4]} 47. Qe8 {[%clk 0:00:03.4]} 47... Kg6 {[%clk
0:00:17.8]} 48. Qe7 {[%clk 0:00:03.2]} 48... h2+ {[%clk 0:00:13.4]} 49. Kxh2
{[%clk 0:00:03]} 49... Qxf2+ {[%clk 0:00:13.8]} 50. Ng2 {[%clk 0:00:03.3]} 50...
Nf4 {[%clk 0:00:13.9]} 0-1

[Event "*** Titled Tuesday Blitz"]
[Site "Chess.com"]
[Date "2020.04.14"]
[Round "3"]
[White "tvjosue"]
[Black "Nesty_Javi_Chess"]
[Result "1/2-1/2"]
[WhiteElo "2484"]
[BlackElo "2793"]
[TimeControl "180+1"]
[EndTime "10:29:04 PDT"]
[Termination "Game drawn by repetition"]

1. c4 {[%clk 0:02:59.5]} 1... c5 {[%clk 0:02:59.5]} 2. Nc3 {[%clk 0:02:59]} 2...
Nc6 {[%clk 0:02:59.9]} 3. Nf3 {[%clk 0:02:59.6]} 3... Nf6 {[%clk 0:02:55.7]} 4.
e3 {[%clk 0:02:59.7]} 4... d5 {[%clk 0:02:54.1]} 5. cxd5 {[%clk 0:02:59.2]} 5...
Nxd5 {[%clk 0:02:55]} 6. Bb5 {[%clk 0:02:53]} 6... e6 {[%clk 0:02:43.6]} 7. O-O
{[%clk 0:02:50.3]} 7... Bd7 {[%clk 0:02:37.7]} 8. Nxd5 {[%clk 0:02:42.8]} 8...
exd5 {[%clk 0:02:38.6]} 9. d4 {[%clk 0:02:43]} 9... cxd4 {[%clk 0:02:31.1]} 10.
Nxd4 {[%clk 0:02:38.3]} 10... Qb6 {[%clk 0:02:28.4]} 11. Ba4 {[%clk 0:02:26.9]}
11... Be7 {[%clk 0:02:10.1]} 12. b3 {[%clk 0:02:06]} 12... O-O {[%clk
0:01:31.7]} 13. Bb2 {[%clk 0:01:59.8]} 13... Rfd8 {[%clk 0:01:32.1]} 14. Rc1
{[%clk 0:01:58.2]} 14... Rac8 {[%clk 0:01:32.4]} 15. Qf3 {[%clk 0:01:15.6]}
15... Bf8 {[%clk 0:00:39.4]} 16. Qg3 {[%clk 0:00:58.6]} 16... Qb4 {[%clk
0:00:15.3]} 17. Nxc6 {[%clk 0:00:27.3]} 17... bxc6 {[%clk 0:00:14.7]} 18. Bc3
{[%clk 0:00:26]} 18... Qe4 {[%clk 0:00:14.8]} 19. Rfd1 {[%clk 0:00:23.4]} 19...
Re8 {[%clk 0:00:14.8]} 20. h3 {[%clk 0:00:21.2]} 20... Qe6 {[%clk 0:00:15.2]}
21. Bd4 {[%clk 0:00:18.1]} 21... c5 {[%clk 0:00:13.1]} 22. Bxd7 {[%clk 0:00:19]}
22... Qxd7 {[%clk 0:00:13.5]} 23. Ba1 {[%clk 0:00:19.9]} 23... Qe6 {[%clk
0:00:13.1]} 24. Rd3 {[%clk 0:00:18.3]} 24... Red8 {[%clk 0:00:13.4]} 25. Rcd1
{[%clk 0:00:18.5]} 25... g6 {[%clk 0:00:13.1]} 26. Qf3 {[%clk 0:00:17.4]} 26...
c4 {[%clk 0:00:12.6]} 27. bxc4 {[%clk 0:00:17.5]} 27... Rxc4 {[%clk 0:00:13.5]}
28. Kh2 {[%clk 0:00:16]} 28... Bd6+ {[%clk 0:00:13.4]} 29. g3 {[%clk 0:00:16]}
29... Bf8 {[%clk 0:00:12.3]} 30. Kg2 {[%clk 0:00:15.8]} 30... Rc2 {[%clk
0:00:11.9]} 31. Bf6 {[%clk 0:00:12.8]} 31... Rdc8 {[%clk 0:00:11.4]} 32. Rxd5
{[%clk 0:00:12.1]} 32... Rxa2 {[%clk 0:00:11.3]} 33. Rd8 {[%clk 0:00:11.7]}
33... Rac2 {[%clk 0:00:08.3]} 34. Rxc8 {[%clk 0:00:11.2]} 34... Rxc8 {[%clk
0:00:06.7]} 35. Rd4 {[%clk 0:00:12.1]} 35... Qc6 {[%clk 0:00:05.1]} 36. Qxc6
{[%clk 0:00:10.7]} 36... Rxc6 {[%clk 0:00:06]} 37. Be5 {[%clk 0:00:11.6]} 37...
f6 {[%clk 0:00:06.4]} 38. Bf4 {[%clk 0:00:11.8]} 38... a5 {[%clk 0:00:06.7]} 39.
Rd8 {[%clk 0:00:10.7]} 39... Kf7 {[%clk 0:00:07]} 40. Ra8 {[%clk 0:00:10.7]}
40... Bb4 {[%clk 0:00:07.6]} 41. h4 {[%clk 0:00:10.6]} 41... h5 {[%clk
0:00:07.1]} 42. Kf3 {[%clk 0:00:10.4]} 42... Ke6 {[%clk 0:00:07.5]} 43. g4
{[%clk 0:00:09]} 43... hxg4+ {[%clk 0:00:06.9]} 44. Kxg4 {[%clk 0:00:09.9]}
44... Rc2 {[%clk 0:00:07]} 45. Ra6+ {[%clk 0:00:08.9]} 45... Kf7 {[%clk
0:00:06.6]} 46. Ra7+ {[%clk 0:00:09.3]} 46... Ke6 {[%clk 0:00:06.8]} 47. Ra6+
{[%clk 0:00:09.6]} 47... Ke7 {[%clk 0:00:06.1]} 48. Ra7+ {[%clk 0:00:09.5]}
48... Ke6 {[%clk 0:00:06.3]} 49. Ra6+ {[%clk 0:00:09.8]} 1/2-1/2

[Event "*** Titled Tuesday Blitz"]
[Site "Chess.com"]
[Date "2020.04.14"]
[Round "3"]
[White "FranciscodelaF"]
[Black "Volodar_Murzin"]
[Result "0-1"]
[WhiteElo "2412"]
[BlackElo "2676"]
[TimeControl "180+1"]
[EndTime "10:29:04 PDT"]
[Termination "Volodar_Murzin won by resignation"]

1. d4 {[%clk 0:02:59.4]} 1... Nf6 {[%clk 0:02:59.6]} 2. c4 {[%clk 0:02:59.3]}
2... g6 {[%clk 0:02:59.1]} 3. g3 {[%clk 0:02:55.9]} 3... Bg7 {[%clk 0:02:59.1]}
4. Bg2 {[%clk 0:02:55.9]} 4... O-O {[%clk 0:02:58.9]} 5. Nc3 {[%clk 0:02:54.9]}
5... d6 {[%clk 0:02:58.7]} 6. Nf3 {[%clk 0:02:55.1]} 6... Nbd7 {[%clk 0:02:58]}
7. O-O {[%clk 0:02:54.9]} 7... e5 {[%clk 0:02:57]} 8. h3 {[%clk 0:02:55.4]} 8...
c6 {[%clk 0:02:54.5]} 9. e4 {[%clk 0:02:55.4]} 9... Qb6 {[%clk 0:02:53.2]} 10.
c5 {[%clk 0:02:53.6]} 10... dxc5 {[%clk 0:02:53.1]} 11. dxe5 {[%clk 0:02:54.5]}
11... Ne8 {[%clk 0:02:53.1]} 12. e6 {[%clk 0:02:55.4]} 12... fxe6 {[%clk
0:02:52.1]} 13. Ng5 {[%clk 0:02:55.4]} 13... Ne5 {[%clk 0:02:52.2]} 14. f4
{[%clk 0:02:54.4]} 14... Nf7 {[%clk 0:02:52.5]} 15. Nxf7 {[%clk 0:01:38.7]}
15... Bd4+ {[%clk 0:02:49.1]} 16. Kh2 {[%clk 0:01:38.4]} 16... Rxf7 {[%clk
0:02:48.6]} 17. e5 {[%clk 0:01:38]} 17... Bd7 {[%clk 0:02:28.9]} 18. Ne4 {[%clk
0:01:32.3]} 18... Rd8 {[%clk 0:02:28.1]} 19. a4 {[%clk 0:01:28.4]} 19... Bc8
{[%clk 0:02:25.7]} 20. Qe2 {[%clk 0:01:27.5]} 20... a5 {[%clk 0:02:17.3]} 21.
Ra3 {[%clk 0:01:27.3]} 21... Qa7 {[%clk 0:02:17]} 22. Ng5 {[%clk 0:01:01.1]}
22... Re7 {[%clk 0:02:15.7]} 23. Qg4 {[%clk 0:00:55.6]} 23... c4 {[%clk
0:02:08.5]} 24. Raf3 {[%clk 0:00:50.6]} 24... Ng7 {[%clk 0:02:01.2]} 25. Ne4
{[%clk 0:00:49.2]} 25... Rf7 {[%clk 0:01:48.6]} 26. h4 {[%clk 0:00:43.5]} 26...
Kh8 {[%clk 0:01:46.8]} 27. Ng5 {[%clk 0:00:40.7]} 27... Rf5 {[%clk 0:01:44.2]}
28. Ra3 {[%clk 0:00:38.7]} 28... Qb6 {[%clk 0:01:37.9]} 29. Qe2 {[%clk
0:00:38.5]} 29... Qc7 {[%clk 0:01:19.3]} 30. Bh3 {[%clk 0:00:38.8]} 30... Rff8
{[%clk 0:01:16.7]} 31. Bg4 {[%clk 0:00:37]} 31... Nf5 {[%clk 0:00:42.8]} 32. h5
{[%clk 0:00:36.6]} 32... Kg7 {[%clk 0:00:42.3]} 33. Kg2 {[%clk 0:00:35.8]} 33...
Qe7 {[%clk 0:00:40.1]} 34. Rh1 {[%clk 0:00:35.2]} 34... Rh8 {[%clk 0:00:38.9]}
35. Ne4 {[%clk 0:00:28.3]} 35... Ba7 {[%clk 0:00:28.1]} 36. Bd2 {[%clk
0:00:24.5]} 36... Rd3 {[%clk 0:00:26.3]} 37. Rxd3 {[%clk 0:00:22]} 37... cxd3
{[%clk 0:00:27.2]} 38. Qxd3 {[%clk 0:00:22.5]} 38... Rd8 {[%clk 0:00:26.9]} 39.
Qe2 {[%clk 0:00:22.6]} 39... Nd4 {[%clk 0:00:23.9]} 40. Qe1 {[%clk 0:00:20.4]}
40... Nb3 {[%clk 0:00:21.7]} 41. hxg6 {[%clk 0:00:19.4]} 41... hxg6 {[%clk
0:00:18.6]} 42. Bc3 {[%clk 0:00:19.4]} 42... Bd4 {[%clk 0:00:17.4]} 43. Ng5
{[%clk 0:00:18.7]} 43... Rh8 {[%clk 0:00:15.2]} 44. Rxh8 {[%clk 0:00:17.9]}
44... Kxh8 {[%clk 0:00:16.1]} 45. Qh1+ {[%clk 0:00:18.4]} 45... Kg8 {[%clk
0:00:15.9]} 46. Qh6 {[%clk 0:00:17]} 46... Qg7 {[%clk 0:00:11.7]} 47. Qxg7+
{[%clk 0:00:16.8]} 47... Kxg7 {[%clk 0:00:12.3]} 48. Bxe6 {[%clk 0:00:17.5]}
48... Bxc3 {[%clk 0:00:11.5]} 49. bxc3 {[%clk 0:00:17.3]} 49... Bxe6 {[%clk
0:00:11.3]} 50. Nxe6+ {[%clk 0:00:18.2]} 50... Kg8 {[%clk 0:00:11.7]} 51. Nd4
{[%clk 0:00:17.8]} 51... Nxd4 {[%clk 0:00:10.2]} 52. cxd4 {[%clk 0:00:18.7]}
52... b5 {[%clk 0:00:10.5]} 53. Kf2 {[%clk 0:00:18.9]} 53... bxa4 {[%clk
0:00:10.2]} 54. Ke2 {[%clk 0:00:19.3]} 54... a3 {[%clk 0:00:10.7]} 55. Kd2
{[%clk 0:00:19.8]} 55... a2 {[%clk 0:00:11.1]} 56. Kc2 {[%clk 0:00:20.6]} 56...
a1=Q {[%clk 0:00:11.4]} 0-1

[Event "*** Titled Tuesday Blitz"]
[Site "Chess.com"]
[Date "2020.04.14"]
[Round "3"]
[White "Larax"]
[Black "mirciulica14"]
[Result "0-1"]
[WhiteElo "2388"]
[BlackElo "2618"]
[TimeControl "180+1"]
[EndTime "10:29:04 PDT"]
[Termination "mirciulica14 won by checkmate"]

1. e4 {[%clk 0:03:00.9]} 1... e5 {[%clk 0:02:59.9]} 2. Nf3 {[%clk 0:03:00.6]}
2... Nc6 {[%clk 0:03:00.4]} 3. Bb5 {[%clk 0:03:01]} 3... a6 {[%clk 0:03:00.9]}
4. Ba4 {[%clk 0:03:00.7]} 4... Nf6 {[%clk 0:03:01.3]} 5. O-O {[%clk 0:03:01.3]}
5... b5 {[%clk 0:03:01.8]} 6. Bb3 {[%clk 0:03:01.1]} 6... Bc5 {[%clk 0:03:02.6]}
7. Re1 {[%clk 0:02:58.8]} 7... d6 {[%clk 0:03:00.3]} 8. c3 {[%clk 0:02:58.7]}
8... O-O {[%clk 0:03:00.6]} 9. d4 {[%clk 0:02:58.5]} 9... Bb6 {[%clk 0:03:01]}
10. Be3 {[%clk 0:02:58.8]} 10... exd4 {[%clk 0:02:55.9]} 11. cxd4 {[%clk
0:02:58.4]} 11... Bg4 {[%clk 0:02:42.9]} 12. d5 {[%clk 0:02:37.6]} 12... Bxe3
{[%clk 0:01:36.5]} 13. Rxe3 {[%clk 0:02:38.5]} 13... Ne5 {[%clk 0:01:35.2]} 14.
Nbd2 {[%clk 0:02:37.1]} 14... Re8 {[%clk 0:01:35.1]} 15. h3 {[%clk 0:02:27.6]}
15... Bh5 {[%clk 0:01:29.7]} 16. Bc2 {[%clk 0:02:26.7]} 16... Qd7 {[%clk
0:01:23.6]} 17. Nxe5 {[%clk 0:02:15.2]} 17... Rxe5 {[%clk 0:01:14.6]} 18. Qe1
{[%clk 0:02:08.1]} 18... h6 {[%clk 0:00:48.6]} 19. f4 {[%clk 0:02:06.6]} 19...
Re7 {[%clk 0:00:48.7]} 20. Qh4 {[%clk 0:01:17.3]} 20... Bg6 {[%clk 0:00:41.1]}
21. f5 {[%clk 0:00:16.8]} 21... Bxf5 {[%clk 0:00:40.9]} 22. Rf1 {[%clk
0:00:16.1]} 22... Bg6 {[%clk 0:00:35.3]} 23. Rxf6 {[%clk 0:00:16.1]} 23... gxf6
{[%clk 0:00:33.8]} 24. Qxf6 {[%clk 0:00:17]} 24... Re5 {[%clk 0:00:26.1]} 25.
Nf3 {[%clk 0:00:15.4]} 25... Qe7 {[%clk 0:00:26.5]} 26. Qf4 {[%clk 0:00:14.5]}
26... Re8 {[%clk 0:00:17]} 27. Nxe5 {[%clk 0:00:13.8]} 27... Qxe5 {[%clk
0:00:17.9]} 28. Qxh6 {[%clk 0:00:13.2]} 28... Qxb2 {[%clk 0:00:18]} 29. Bd1
{[%clk 0:00:09.8]} 29... Qd4 {[%clk 0:00:16.7]} 30. Kh2 {[%clk 0:00:08.8]} 30...
Qxd1 {[%clk 0:00:16.5]} 31. Rg3 {[%clk 0:00:09.4]} 31... Qd4 {[%clk 0:00:13.9]}
32. h4 {[%clk 0:00:08.9]} 32... Qg7 {[%clk 0:00:13.3]} 33. Qxg7+ {[%clk
0:00:08.8]} 33... Kxg7 {[%clk 0:00:14.2]} 34. h5 {[%clk 0:00:09.7]} 34... Rxe4
{[%clk 0:00:14.7]} 35. hxg6 {[%clk 0:00:10.2]} 35... fxg6 {[%clk 0:00:15.6]} 36.
Rc3 {[%clk 0:00:10]} 36... Rc4 {[%clk 0:00:16.2]} 37. Ra3 {[%clk 0:00:09.3]}
37... Rc5 {[%clk 0:00:15.7]} 38. Rxa6 {[%clk 0:00:09.5]} 38... Rxd5 {[%clk
0:00:16.3]} 39. Ra7 {[%clk 0:00:09.7]} 39... Rc5 {[%clk 0:00:16.9]} 40. Rb7
{[%clk 0:00:10.3]} 40... Kf6 {[%clk 0:00:17.1]} 41. Kg3 {[%clk 0:00:10.8]} 41...
c6 {[%clk 0:00:15.4]} 42. Kf4 {[%clk 0:00:10.5]} 42... Rc4+ {[%clk 0:00:15.8]}
43. Ke3 {[%clk 0:00:10.4]} 43... Rc2 {[%clk 0:00:16.5]} 44. Rb6 {[%clk
0:00:09.9]} 44... Rxa2 {[%clk 0:00:15.9]} 45. Rxc6 {[%clk 0:00:10.4]} 45... Ke5
{[%clk 0:00:16.4]} 46. Rb6 {[%clk 0:00:10.4]} 46... Rxg2 {[%clk 0:00:16.1]} 47.
Rxb5+ {[%clk 0:00:10]} 47... Ke6 {[%clk 0:00:16.8]} 48. Kf4 {[%clk 0:00:09.9]}
48... Rf2+ {[%clk 0:00:16.4]} 49. Kg5 {[%clk 0:00:10.1]} 49... Rf5+ {[%clk
0:00:16.8]} 50. Rxf5 {[%clk 0:00:09.3]} 50... gxf5 {[%clk 0:00:17.7]} 51. Kf4
{[%clk 0:00:10.2]} 51... d5 {[%clk 0:00:18.1]} 52. Kf3 {[%clk 0:00:10.7]} 52...
Ke5 {[%clk 0:00:19]} 53. Ke3 {[%clk 0:00:11.6]} 53... d4+ {[%clk 0:00:19.9]} 54.
Kd3 {[%clk 0:00:12.3]} 54... Kd5 {[%clk 0:00:20.5]} 55. Kd2 {[%clk 0:00:13.2]}
55... Ke4 {[%clk 0:00:21.4]} 56. Ke2 {[%clk 0:00:12]} 56... d3+ {[%clk
0:00:22.3]} 57. Kd2 {[%clk 0:00:12.9]} 57... Kd4 {[%clk 0:00:23.2]} 58. Kd1
{[%clk 0:00:13.7]} 58... Ke3 {[%clk 0:00:24.1]} 59. Kc1 {[%clk 0:00:14.6]} 59...
f4 {[%clk 0:00:25]} 60. Kd1 {[%clk 0:00:15.5]} 60... f3 {[%clk 0:00:25.9]} 61.
Ke1 {[%clk 0:00:16.2]} 61... f2+ {[%clk 0:00:25.6]} 62. Kf1 {[%clk 0:00:17.1]}
62... d2 {[%clk 0:00:25.9]} 63. Kg2 {[%clk 0:00:18]} 63... d1=Q {[%clk
0:00:26.3]} 64. Kg3 {[%clk 0:00:18.9]} 64... f1=Q {[%clk 0:00:26.7]} 65. Kh4
{[%clk 0:00:19]} 65... Qd4+ {[%clk 0:00:26.2]} 66. Kg5 {[%clk 0:00:19.9]} 66...
Qff4+ {[%clk 0:00:25.7]} 67. Kg6 {[%clk 0:00:20.8]} 67... Qdf6+ {[%clk
0:00:25.6]} 68. Kh7 {[%clk 0:00:21.7]} 68... Q4h6+ {[%clk 0:00:25.7]} 69. Kg8
{[%clk 0:00:22.6]} 69... Qff8# {[%clk 0:00:26.3]} 0-1